fUSD/lending_fUSD_20250109
["ID","MTS","AMOUNT","RATE_DAILY","PERIOD"]
[348225117,1736403032611,-500.0,9.993e-05,2]
[348225118,1736403032621,-500.0,9.993e-05,2]
[348225119,1736403032630,-500.0,9.993e-05,2]
[348225121,1736403032640,-500.0,9.993e-05,2]
[348225123,1736403032649,-500.0,9.993e-05,2]
[348225125,1736403032659,-500.0,9.993e-05,2]
[348225127,1736403032668,-246.09339943,9.993e-05,2]
[348225129,1736403032691,-253.90660057,9.993e-05,2]
[348225130,1736403032701,-855.81,9.993e-05,2]
[348225131,1736403032712,-816.057026,9.993e-05,2]
[348225132,1736403032722,-500.0,9.993e-05,2]
[348225133,1736403032731,-878.15,9.993e-05,2]
[348225134,1736403032741,-156.484712,9.993e-05,2]
[348225135,1736403032750,-500.0,9.993e-05,2]
[348225136,1736403032760,-500.0,9.993e-05,2]
[348225137,1736403032769,-500.0,9.993e-05,2]
[348225138,1736403032779,-156.900602,9.993e-05,2]
[348225139,1736403032788,-500.0,9.993e-05,2]
[348225140,1736403032798,-500.0,9.993e-05,2]
[348225141,1736403032807,-500.0,9.993e-05,2]
[348225142,1736403032817,-500.0,9.993e-05,2]
[348225143,1736403032826,-500.0,9.993e-05,2]
[348225144,1736403032835,-500.0,9.993e-05,2]
[348225145,1736403032845,-841.94,9.993e-05,2]
[348225146,1736403032854,-509.98666122,9.994e-05,2]
[348225147,1736403032864,-582.69589797,9.994e-05,2]
[348225148,1736403032873,-500.68725825,9.994e-05,2]
[348225149,1736403032882,-283.66631249,9.994e-05,2]
[348225150,1736403038157,-500.0,9.769e-05,2]
[348225151,1736403038167,-500.0,9.993e-05,2]
[348225152,1736403038177,-142.11724043,9.993e-05,2]
[348225153,1736403038189,-460.37405347,9.993e-05,2]
[348225154,1736403038198,-217.24966357,9.994e-05,2]
[348225155,1736403038208,-512.04129746,9.994e-05,2]
[348225156,1736403038218,-500.0,9.994e-05,2]
[348225157,1736403038228,-502.58331064,9.994e-05,2]
[348225158,1736403038237,-501.23874663,9.994e-05,2]
[348225159,1736403038247,-505.14993876,9.994e-05,2]
[348225160,1736403038257,-500.0,9.994e-05,2]
[348225161,1736403038267,-500.0,9.994e-05,2]
[348225162,1736403038276,-501.319,9.994e-05,2]
[348225163,1736403038285,-588.01751269,9.994e-05,2]
[348225164,1736403038294,-502.91276104,9.994e-05,2]
[348225165,1736403038303,-500.0,9.994e-05,2]
[348225166,1736403038312,-502.92,9.994e-05,2]
[348225167,1736403038322,-500.0,9.994e-05,2]
[348225168,1736403038331,-605.53677208,9.994e-05,2]
[348225170,1736403038340,-500.0,9.994e-05,2]
[348225171,1736403038349,-500.0,9.994e-05,2]
[348225172,1736403038358,-500.0,9.994e-05,2]
[348225173,1736403038368,-328.88677781,9.994e-05,2]
[348225174,1736403038377,-502.93145544,9.994e-05,2]
[348225175,1736403038386,-500.0,9.994e-05,2]
[348225188,1736403038601,-500.0,9.994e-05,2]
[348225189,1736403038611,-500.0,9.994e-05,2]
[348225190,1736403038620,-500.0,9.994e-05,2]
[348225191,1736403038629,-500.0,9.994e-05,2]
[348225192,1736403038639,-500.0,9.994e-05,2]
[348225193,1736403038648,-501.79558602,9.994e-05,2]
[348225194,1736403038657,-500.53536322,9.994e-05,2]
[348225195,1736403038666,-500.0,9.994e-05,2]
[348225196,1736403038676,-501.74826303,9.994e-05,2]
[348225197,1736403038685,-500.0,9.994e-05,2]
[348225198,1736403038694,-500.0,9.994e-05,2]
[348225199,1736403038704,-500.0,9.994e-05,2]
[348225200,1736403038715,-500.0,9.994e-05,2]
[348225201,1736403038725,-661.24,9.994e-05,2]
[348225202,1736403038734,-511.49,9.994e-05,2]
[348225203,1736403038743,-500.0,9.994e-05,2]
[348225204,1736403038752,-500.0,9.994e-05,2]
[348225205,1736403038761,-500.0,9.994e-05,2]
[348225206,1736403038770,-500.0,9.994e-05,2]
[348225207,1736403038779,-331.79585934,9.994e-05,2]
[348225208,1736403038788,-500.0,9.994e-05,2]
[348225209,1736403038797,-835.96,9.994e-05,2]
[348225210,1736403038806,-505.71429642,9.994e-05,2]
[348225211,1736403038815,-500.0,9.994e-05,2]
[348225212,1736403038825,-500.0,9.994e-05,2]
[348225213,1736403038833,-500.0,9.994e-05,2]
[348225214,1736403038842,-500.0,9.994e-05,2]
[348225215,1736403038852,-552.51,9.994e-05,2]
[348225216,1736403038860,-530.5685498,9.994e-05,2]
[348225217,1736403038869,-501.29240161,9.994e-05,2]
[348225218,1736403038879,-500.0,9.994e-05,2]
[348225219,1736403038888,-501.47079171,9.994e-05,2]
[348225220,1736403038897,-500.0,9.994e-05,2]
[348225221,1736403038906,-810.95,9.994e-05,2]
[348225222,1736403038915,-500.0,9.994e-05,2]
[348225223,1736403038924,-500.0,9.994e-05,2]
[348225224,1736403038933,-512.29,9.994e-05,2]
[348225225,1736403038942,-500.0,9.994e-05,2]
[348225226,1736403038951,-500.0,9.994e-05,2]
[348225227,1736403038960,-500.0,9.994e-05,2]
[348225228,1736403038969,-500.0,9.994e-05,2]
[348225229,1736403038978,-500.0,9.994e-05,2]
[348225230,1736403038987,-500.0,9.994e-05,2]
[348225231,1736403038996,-500.0,9.994e-05,2]
[348225232,1736403039006,-451.80807502,9.994e-05,2]
[348225233,1736403039015,-500.0,9.994e-05,2]
[348225234,1736403039025,-500.0,9.994e-05,2]
[348225235,1736403039035,-500.0,9.994e-05,2]
[348225236,1736403039044,-527.27,9.994e-05,2]
[348225237,1736403039054,-500.0,9.994e-05,2]
[348225238,1736403039063,-500.0,9.994e-05,2]
[348225239,1736403039072,-500.0,9.994e-05,2]
[348225240,1736403039081,-500.0,9.994e-05,2]
[348225241,1736403039094,-503.46963081,9.994e-05,2]
[348225242,1736403039103,-500.0,9.994e-05,2]
[348225243,1736403039112,-167.05675434,9.994e-05,2]
[348225244,1736403039121,-500.0,9.994e-05,2]
[348225245,1736403039130,-500.0,9.994e-05,2]
[348225246,1736403039140,-500.0,9.994e-05,2]
[348225247,1736403039149,-500.0,9.994e-05,2]
[348225248,1736403039159,-500.0,9.994e-05,2]
[348225249,1736403039168,-500.0,9.994e-05,2]
[348225250,1736403039179,-1175.25,9.994e-05,2]
[348225251,1736403039190,-500.0,9.994e-05,2]
[348225252,1736403039199,-500.0,9.994e-05,2]
[348225253,1736403039211,-500.0,9.994e-05,2]
[348225254,1736403039220,-500.0,9.994e-05,2]
[348225255,1736403039230,-500.0,9.994e-05,2]
[348225256,1736403039239,-789.91,9.994e-05,2]
[348225257,1736403039249,-500.0,9.994e-05,2]
[348225258,1736403039258,-500.0,9.994e-05,2]
[348225259,1736403039266,-500.0,9.994e-05,2]
[348225260,1736403039275,-500.0,9.994e-05,2]
[348225261,1736403039284,-500.0,9.994e-05,2]
[348225262,1736403039293,-1742.18,9.994e-05,2]
[348225263,1736403039303,-500.0,9.994e-05,2]
[348225264,1736403039312,-500.0,9.994e-05,2]
[348225265,1736403039321,-500.0,9.994e-05,2]
[348225266,1736403039331,-500.0,9.994e-05,2]
[348225267,1736403039340,-500.0,9.994e-05,2]
[348225268,1736403039350,-500.0,9.994e-05,2]
[348225269,1736403039359,-500.0,9.994e-05,2]
[348225270,1736403039368,-500.0,9.994e-05,2]
[348225271,1736403039377,-500.0,9.994e-05,2]
[348225272,1736403039386,-500.0,9.994e-05,2]
[348225273,1736403039396,-500.0,9.994e-05,2]
[348225274,1736403039405,-829.17,9.994e-05,2]
[348225275,1736403039414,-500.0,9.994e-05,2]
[348225276,1736403039423,-500.0,9.994e-05,2]
[348225277,1736403039433,-500.0,9.994e-05,2]
[348225278,1736403039443,-500.0,9.994e-05,2]
[348225279,1736403039453,-500.0,9.994e-05,2]
[348225280,1736403039464,-500.0,9.994e-05,2]
[348225281,1736403039475,-500.0,9.994e-05,2]
[348225282,1736403039484,-500.0,9.994e-05,2]
[348225283,1736403039494,-500.0,9.994e-05,2]
[348225284,1736403039503,-1510.43,9.994e-05,2]
[348225285,1736403039512,-500.0,9.994e-05,2]
[348225286,1736403039522,-500.0,9.994e-05,2]
[348225287,1736403039531,-500.0,9.994e-05,2]
[348225288,1736403039541,-2957.32,9.994e-05,2]
[348225289,1736403039551,-500.0,9.994e-05,2]
[348225290,1736403039560,-500.0,9.994e-05,2]
[348225291,1736403039570,-568.39,9.994e-05,2]
[348225292,1736403039581,-1551.05,9.994e-05,2]
[348225293,1736403039590,-1206.26,9.994e-05,2]
[348225294,1736403039600,-500.0,9.994e-05,2]
[348225295,1736403039609,-2128.68,9.994e-05,2]
[348225296,1736403039619,-1853.69,9.994e-05,2]
[348225297,1736403039628,-685.48,9.994e-05,2]
[348225298,1736403039639,-513.3,9.994e-05,2]
[348225299,1736403039648,-500.0,9.994e-05,2]
[348225300,1736403039658,-969.82,9.994e-05,2]
[348225301,1736403039668,-755.1,9.994e-05,2]
[348225302,1736403039678,-945.68,9.994e-05,2]
[348225303,1736403039687,-716.34198,9.994e-05,2]
[348225304,1736403039696,-500.0,9.994e-05,2]
[348225305,1736403039707,-669.36,9.994e-05,2]
[348225306,1736403039717,-1171.6,9.994e-05,2]
[348225307,1736403039727,-1226.93,9.994e-05,2]
[348225308,1736403039736,-1415.06,9.994e-05,2]
[348225309,1736403039746,-795.88,9.994e-05,2]
[348225310,1736403039755,-500.0,9.994e-05,2]
[348225311,1736403039764,-151.0,9.994e-05,2]
[348225312,1736403039773,-500.0,9.994e-05,2]
[348225313,1736403039782,-151.0,9.994e-05,2]
[348225314,1736403039791,-500.0,9.994e-05,2]
[348225315,1736403039800,-564.24,9.994e-05,2]
[348225316,1736403039809,-500.0,9.994e-05,2]
[348225317,1736403039818,-500.0,9.994e-05,2]
[348225318,1736403039827,-500.0,9.994e-05,2]
[348225319,1736403039837,-1547.66,9.994e-05,2]
[348225320,1736403039846,-500.0,9.994e-05,2]
[348225321,1736403039855,-500.0,9.994e-05,2]
[348225322,1736403039864,-540.86,9.994e-05,2]
[348225323,1736403039873,-2000.0,9.995e-05,2]
[348225324,1736403039882,-500.0,9.995e-05,2]
[348225325,1736403039891,-500.0,9.995e-05,2]
[348225327,1736403039900,-200.0,9.995e-05,2]
[348225328,1736403039909,-500.0,9.995e-05,2]
[348225329,1736403039918,-500.0,9.995e-05,2]
[348225330,1736403039927,-502.08275398,9.995e-05,2]
[348225332,1736403039936,-410.28605101,9.995e-05,2]
[348225334,1736403039945,-501.90840369,9.995e-05,2]
[348225336,1736403039954,-503.18211822,9.995e-05,2]
[348225338,1736403039964,-500.0,9.995e-05,2]
[348225339,1736403039973,-503.33462853,9.995e-05,2]
[348225340,1736403039982,-503.53542871,9.995e-05,2]
[348225341,1736403039992,-500.43117394,9.995e-05,2]
[348225342,1736403040001,-500.0,9.995e-05,2]
[348225343,1736403040010,-500.0,9.995e-05,2]
[348225344,1736403040019,-500.0,9.995e-05,2]
[348225345,1736403040027,-500.0,9.995e-05,2]
[348225346,1736403040036,-503.31007717,9.995e-05,2]
[348225347,1736403040045,-500.0,9.995e-05,2]
[348225348,1736403040054,-500.0,9.995e-05,2]
[348225349,1736403040063,-503.69324661,9.995e-05,2]
[348225350,1736403040073,-503.74187783,9.995e-05,2]
[348225351,1736403040082,-500.0,9.995e-05,2]
[348225352,1736403040092,-502.83098358,9.995e-05,2]
[348225353,1736403040102,-517.85679445,9.995e-05,2]
[348225354,1736403040112,-500.0,9.995e-05,2]
[348225355,1736403040122,-500.0,9.995e-05,2]
[348225356,1736403040132,-500.0,9.995e-05,2]
[348225357,1736403040142,-500.0,9.995e-05,2]
[348225358,1736403040151,-500.0,9.995e-05,2]
[348225359,1736403040160,-500.0,9.995e-05,2]
[348225360,1736403040170,-503.38772586,9.995e-05,2]
[348225361,1736403040179,-500.0,9.995e-05,2]
[348225362,1736403040188,-445.80520274,9.995e-05,2]
[348225363,1736403040197,-500.0,9.995e-05,2]
[348225364,1736403040207,-503.2974612,9.995e-05,2]
[348225365,1736403040217,-500.0,9.995e-05,2]
[348225366,1736403040225,-500.0,9.995e-05,2]
[348225367,1736403040234,-501.16080485,9.995e-05,2]
[348225368,1736403040243,-500.0,9.995e-05,2]
[348225369,1736403040252,-500.0,9.995e-05,2]
[348225370,1736403040261,-501.06791574,9.995e-05,2]
[348225371,1736403040276,-501.59439518,9.995e-05,2]
[348225372,1736403040288,-500.0,9.995e-05,2]
[348225373,1736403040300,-500.78213096,9.995e-05,2]
[348225374,1736403040311,-500.0,9.995e-05,2]
[348225375,1736403040321,-500.0,9.995e-05,2]
[348225376,1736403040334,-500.5995242,9.995e-05,2]
[348225377,1736403040346,-500.0,9.995e-05,2]
[348225378,1736403040357,-500.0,9.995e-05,2]
[348225379,1736403040370,-500.0,9.995e-05,2]
[348225380,1736403040382,-500.84094224,9.995e-05,2]
[348225381,1736403040394,-500.0,9.995e-05,2]
[348225382,1736403040405,-500.0,9.995e-05,2]
[348225383,1736403040416,-500.0,9.995e-05,2]
[348225384,1736403040426,-500.89212173,9.995e-05,2]
[348225385,1736403040437,-500.85268257,9.995e-05,2]
[348225386,1736403040449,-500.0,9.995e-05,2]
[348225387,1736403040461,-500.0,9.995e-05,2]
[348225388,1736403040473,-500.0,9.995e-05,2]
[348225389,1736403040485,-500.63045244,9.995e-05,2]
[348225390,1736403040498,-500.0,9.995e-05,2]
[348225391,1736403040511,-500.0,9.995e-05,2]
[348225392,1736403040523,-500.0,9.995e-05,2]
[348225393,1736403040535,-500.48007366,9.995e-05,2]
[348225394,1736403040548,-500.0,9.995e-05,2]
[348225395,1736403040561,-198.144617,9.995e-05,2]
[348225396,1736403040573,-500.0,9.995e-05,2]
[348225397,1736403040584,-414.44969735,9.995e-05,2]
[348225398,1736403040596,-501.98402373,9.995e-05,2]
[348225399,1736403040608,-501.45842499,9.995e-05,2]
[348225400,1736403040620,-500.0,9.995e-05,2]
[348225401,1736403040634,-500.0,9.995e-05,2]
[348225402,1736403040645,-198.144617,9.995e-05,2]
[348225403,1736403040657,-503.98197125,9.995e-05,2]
[348225404,1736403040668,-500.31264481,9.995e-05,2]
[348225405,1736403040679,-500.0,9.995e-05,2]
[348225406,1736403040690,-500.0,9.995e-05,2]
[348225407,1736403040701,-500.0,9.995e-05,2]
[348225408,1736403040717,-237.86976817,9.995e-05,2]
[348225409,1736403040730,-500.0,9.995e-05,2]
[348225410,1736403040740,-500.0,9.995e-05,2]
[348225411,1736403040750,-500.0,9.995e-05,2]
[348225412,1736403040760,-500.0,9.995e-05,2]
[348225413,1736403040772,-577.46458466,9.995e-05,2]
[348225414,1736403040784,-500.0,9.995e-05,2]
[348225415,1736403040797,-500.40978857,9.995e-05,2]
[348225416,1736403040808,-500.0,9.995e-05,2]
[348225417,1736403040819,-500.0,9.995e-05,2]
[348225418,1736403040829,-505.64,9.995e-05,2]
[348225419,1736403040839,-518.85,9.995e-05,2]
[348225420,1736403040850,-500.0,9.995e-05,2]
[348225421,1736403040861,-501.45989915,9.995e-05,2]
[348225422,1736403040872,-503.59347331,9.995e-05,2]
[348225423,1736403040882,-501.01800449,9.995e-05,2]
[348225424,1736403040893,-500.66630858,9.995e-05,2]
[348225425,1736403040904,-500.0,9.995e-05,2]
[348225426,1736403040915,-507.39221955,9.995e-05,2]
[348225427,1736403040926,-503.25182189,9.995e-05,2]
[348225428,1736403040939,-500.20863755,9.995e-05,2]
[348225429,1736403040951,-503.20846297,9.995e-05,2]
[348225430,1736403040962,-500.77997156,9.995e-05,2]
[348225431,1736403040974,-500.0,9.995e-05,2]
[348225432,1736403040985,-505.14286578,9.995e-05,2]
[348225433,1736403040996,-500.0,9.995e-05,2]
[348225434,1736403041008,-500.0,9.995e-05,2]
[348225435,1736403041018,-500.0,9.995e-05,2]
[348225436,1736403041029,-500.0,9.995e-05,2]
[348225437,1736403041040,-500.43737558,9.995e-05,2]
[348225438,1736403041051,-500.0,9.995e-05,2]
[348225439,1736403041062,-500.0,9.995e-05,2]
[348225440,1736403041073,-500.0,9.995e-05,2]
[348225441,1736403041085,-500.4337222,9.995e-05,2]
[348225442,1736403041099,-504.38737635,9.995e-05,2]
[348225443,1736403041110,-500.0,9.995e-05,2]
[348225444,1736403041121,-500.0,9.995e-05,2]
[348225445,1736403041131,-500.0,9.995e-05,2]
[348225446,1736403041143,-500.0,9.995e-05,2]
[348225447,1736403041154,-500.0,9.995e-05,2]
[348225448,1736403041165,-500.0,9.995e-05,2]
[348225449,1736403041176,-500.0,9.995e-05,2]
[348225450,1736403041188,-500.0,9.995e-05,2]
[348225451,1736403041198,-500.0,9.995e-05,2]
[348225452,1736403041209,-500.0,9.995e-05,2]
[348225453,1736403041221,-500.0,9.995e-05,2]
[348225454,1736403041232,-500.0,9.995e-05,2]
[348225455,1736403041243,-500.0,9.995e-05,2]
[348225456,1736403041254,-500.0,9.995e-05,2]
[348225457,1736403041265,-500.0,9.995e-05,2]
[348225458,1736403041276,-500.0,9.995e-05,2]
[348225459,1736403041287,-500.0,9.995e-05,2]
[348225460,1736403041298,-500.0,9.995e-05,2]
[348225461,1736403041309,-500.0,9.995e-05,2]
[348225462,1736403041320,-500.55411641,9.995e-05,2]
[348225463,1736403041330,-500.0,9.995e-05,2]
[348225464,1736403041341,-500.0,9.995e-05,2]
[348225465,1736403041352,-500.79998703,9.995e-05,2]
[348225466,1736403041363,-501.76245435,9.995e-05,2]
[348225467,1736403041374,-500.0,9.995e-05,2]
[348225468,1736403041385,-500.63345698,9.995e-05,2]
[348225469,1736403041395,-500.0,9.995e-05,2]
[348225470,1736403041407,-500.87946102,9.995e-05,2]
[348225471,1736403041417,-500.0,9.995e-05,2]
[348225472,1736403041428,-502.4,9.995e-05,2]
[348225473,1736403041439,-551.1140989,9.995e-05,2]
[348225474,1736403041450,-500.0,9.995e-05,2]
[348225475,1736403041460,-500.25034454,9.995e-05,2]
[348225476,1736403041471,-500.0,9.995e-05,2]
[348225477,1736403041481,-500.0,9.995e-05,2]
[348225478,1736403041491,-500.0,9.995e-05,2]
[348225479,1736403041502,-500.0,9.995e-05,2]
[348225480,1736403041512,-500.0,9.995e-05,2]
[348225481,1736403041523,-500.0,9.995e-05,2]
[348225482,1736403041533,-500.0,9.995e-05,2]
[348225483,1736403041544,-500.0,9.995e-05,2]
[348225484,1736403041555,-500.0,9.995e-05,2]
[348225485,1736403041565,-500.0,9.995e-05,2]
[348225486,1736403041576,-500.0,9.995e-05,2]
[348225487,1736403041586,-500.96976411,9.995e-05,2]
[348225488,1736403041597,-500.0,9.995e-05,2]
[348225489,1736403041608,-500.0,9.995e-05,2]
[348225490,1736403041619,-500.0,9.995e-05,2]
[348225491,1736403041630,-500.73195537,9.995e-05,2]
[348225492,1736403041641,-500.0,9.995e-05,2]
[348225493,1736403041653,-500.0,9.995e-05,2]
[348225494,1736403041664,-500.0,9.995e-05,2]
[348225495,1736403041675,-500.0,9.995e-05,2]
[348225496,1736403041686,-500.0,9.995e-05,2]
[348225497,1736403041697,-500.0,9.995e-05,2]
[348225498,1736403041710,-500.0,9.995e-05,2]
[348225499,1736403041722,-500.0,9.995e-05,2]
[348225500,1736403041734,-500.0,9.995e-05,2]
[348225501,1736403041745,-500.0,9.995e-05,2]
[348225502,1736403041757,-500.0,9.995e-05,2]
[348225503,1736403041768,-557.74,9.995e-05,2]
[348225504,1736403041779,-1296.19,9.995e-05,2]
[348225505,1736403041791,-500.0,9.995e-05,2]
[348225506,1736403041802,-500.0,9.995e-05,2]
[348225507,1736403041813,-511.36,9.995e-05,2]
[348225508,1736403041824,-500.37377024,9.995e-05,2]
[348225509,1736403041835,-500.0,9.995e-05,2]
[348225510,1736403041846,-500.0,9.995e-05,2]
[348225511,1736403041857,-500.0,9.995e-05,2]
[348225512,1736403041868,-500.0,9.995e-05,2]
[348225513,1736403041879,-500.0,9.995e-05,2]
[348225514,1736403041890,-500.0,9.995e-05,2]
[348225515,1736403041901,-599.39,9.995e-05,2]
[348225516,1736403041912,-500.85628751,9.995e-05,2]
[348225517,1736403041923,-500.0,9.995e-05,2]
[348225518,1736403041935,-500.0,9.995e-05,2]
[348225519,1736403041947,-500.0,9.995e-05,2]
[348225520,1736403041959,-500.0,9.995e-05,2]
[348225521,1736403041971,-500.0,9.995e-05,2]
[348225522,1736403041982,-500.0,9.995e-05,2]
[348225523,1736403041993,-500.79133758,9.995e-05,2]
[348225524,1736403042004,-500.0,9.995e-05,2]
[348225525,1736403042015,-500.0,9.995e-05,2]
[348225526,1736403042026,-501.22075627,9.995e-05,2]
[348225527,1736403042037,-500.0,9.995e-05,2]
[348225528,1736403042048,-500.0,9.995e-05,2]
[348225529,1736403042059,-500.0,9.995e-05,2]
[348225530,1736403042070,-500.0,9.995e-05,2]
[348225531,1736403042082,-500.0,9.995e-05,2]
[348225532,1736403042098,-500.0,9.995e-05,2]
[348225533,1736403042109,-500.0,9.995e-05,2]
[348225534,1736403042121,-498.66426998,9.995e-05,2]
[348225535,1736403042134,-500.0,9.995e-05,2]
[348225536,1736403042146,-500.0,9.995e-05,2]
[348225537,1736403042158,-500.37079652,9.995e-05,2]
[348225538,1736403042169,-500.0,9.995e-05,2]
[348225539,1736403042181,-500.0,9.995e-05,2]
[348225540,1736403042193,-500.0,9.995e-05,2]
[348225541,1736403042204,-500.0,9.995e-05,2]
[348225542,1736403042214,-500.0,9.995e-05,2]
[348225543,1736403042223,-638.60568308,9.995e-05,2]
[348225544,1736403042493,-500.0,9.995e-05,2]
[348225545,1736403042522,-500.0,9.995e-05,2]
[348225546,1736403042538,-500.0,9.995e-05,2]
[348225547,1736403042548,-501.16727073,9.995e-05,2]
[348225548,1736403042558,-500.0,9.995e-05,2]
[348225549,1736403042568,-500.0,9.995e-05,2]
[348225550,1736403042578,-500.0,9.995e-05,2]
[348225551,1736403042588,-500.0,9.995e-05,2]
[348225552,1736403042597,-500.0,9.995e-05,2]
[348225553,1736403042607,-500.0,9.995e-05,2]
[348225554,1736403042616,-500.0,9.995e-05,2]
[348225555,1736403042626,-500.0,9.995e-05,2]
[348225556,1736403042636,-500.0,9.995e-05,2]
[348225557,1736403042646,-500.0,9.995e-05,2]
[348225558,1736403042655,-506.05278059,9.995e-05,2]
[348225559,1736403042665,-500.0,9.995e-05,2]
[348225560,1736403042675,-500.0,9.995e-05,2]
[348225561,1736403042685,-500.0,9.995e-05,2]
[348225562,1736403042695,-500.0,9.995e-05,2]
[348225563,1736403042707,-500.0,9.995e-05,2]
[348225564,1736403042719,-500.0,9.995e-05,2]
[348225565,1736403042729,-500.0,9.995e-05,2]
[348225566,1736403042738,-500.0,9.995e-05,2]
[348225567,1736403042748,-500.0,9.995e-05,2]
[348225568,1736403042757,-578.29,9.995e-05,2]
[348225569,1736403042766,-500.0,9.995e-05,2]
[348225570,1736403042776,-500.0,9.995e-05,2]
[348225571,1736403042786,-501.12646751,9.995e-05,2]
[348225572,1736403042795,-500.0,9.995e-05,2]
[348225573,1736403042805,-500.0,9.995e-05,2]
[348225574,1736403042815,-500.0,9.995e-05,2]
[348225575,1736403042824,-500.0,9.995e-05,2]
[348225576,1736403042834,-500.0,9.995e-05,2]
[348225577,1736403042843,-500.0,9.995e-05,2]
[348225578,1736403042853,-500.0,9.995e-05,2]
[348225579,1736403042862,-500.0,9.995e-05,2]
[348225580,1736403042871,-500.0,9.995e-05,2]
[348225581,1736403042880,-502.36252508,9.995e-05,2]
[348225582,1736403042890,-501.6426377,9.995e-05,2]
[348225583,1736403042899,-500.0,9.995e-05,2]
[348225584,1736403042909,-500.0,9.995e-05,2]
[348225585,1736403042918,-500.0,9.995e-05,2]
[348225586,1736403042927,-500.0,9.995e-05,2]
[348225587,1736403042936,-501.28719864,9.995e-05,2]
[348225588,1736403042946,-500.0,9.995e-05,2]
[348225589,1736403042955,-501.57416731,9.995e-05,2]
[348225590,1736403042965,-495.9130096,9.995e-05,2]
[348225591,1736403042974,-500.0,9.995e-05,2]
[348225592,1736403042984,-500.0,9.995e-05,2]
[348225593,1736403042993,-500.0,9.995e-05,2]
[348225594,1736403043003,-500.0,9.995e-05,2]
[348225595,1736403043012,-500.0,9.995e-05,2]
[348225596,1736403043022,-501.91431287,9.995e-05,2]
[348225597,1736403043031,-500.0,9.995e-05,2]
[348225598,1736403043041,-500.0,9.995e-05,2]
[348225599,1736403043053,-500.0,9.995e-05,2]
[348225600,1736403043063,-500.0,9.995e-05,2]
[348225601,1736403043072,-500.0,9.995e-05,2]
[348225602,1736403043082,-500.0,9.995e-05,2]
[348225603,1736403043096,-504.14191721,9.995e-05,2]
[348225604,1736403043105,-500.0,9.995e-05,2]
[348225605,1736403043115,-500.0,9.995e-05,2]
[348225606,1736403043124,-501.02989664,9.995e-05,2]
[348225607,1736403043134,-500.0,9.995e-05,2]
[348225608,1736403043143,-503.47443321,9.995e-05,2]
[348225609,1736403043152,-500.0,9.995e-05,2]
[348225610,1736403043163,-612.0177811,9.995e-05,2]
[348225611,1736403043173,-500.0,9.995e-05,2]
[348225612,1736403043183,-500.0,9.995e-05,2]
[348225613,1736403043193,-500.0,9.995e-05,2]
[348225614,1736403043202,-526.08178114,9.995e-05,2]
[348225615,1736403043211,-500.0,9.995e-05,2]
[348225616,1736403043221,-500.0,9.995e-05,2]
[348225617,1736403043231,-500.0,9.995e-05,2]
[348225618,1736403043240,-500.0,9.995e-05,2]
[348225619,1736403043249,-500.0,9.995e-05,2]
[348225620,1736403043259,-500.82804996,9.995e-05,2]
[348225621,1736403043268,-500.0,9.995e-05,2]
[348225622,1736403043278,-500.0,9.995e-05,2]
[348225623,1736403043287,-500.0,9.995e-05,2]
[348225624,1736403043297,-500.0,9.995e-05,2]
[348225625,1736403043306,-500.0,9.995e-05,2]
[348225626,1736403043316,-500.0,9.995e-05,2]
[348225627,1736403043327,-500.0,9.995e-05,2]
[348225628,1736403043336,-500.0,9.995e-05,2]
[348225629,1736403043345,-501.04929038,9.995e-05,2]
[348225631,1736403043354,-454.98434993,9.995e-05,2]
[348225633,1736403043364,-500.0,9.995e-05,2]
[348225634,1736403043373,-500.0,9.995e-05,2]
[348225635,1736403043382,-500.0,9.995e-05,2]
[348225636,1736403043392,-500.0,9.995e-05,2]
[348225637,1736403043402,-500.0,9.995e-05,2]
[348225639,1736403043411,-500.0,9.995e-05,2]
[348225640,1736403043420,-500.0,9.995e-05,2]
[348225641,1736403043430,-500.0,9.995e-05,2]
[348225642,1736403043439,-500.0,9.995e-05,2]